[Event "*** Titled Tuesday Blitz"]
[Site "Chess.com"]
[Date "2021.02.02"]
[Round "1"]
[White "Szparu"]
[Black "Snowflake"]
[Result "1-0"]
[WhiteElo "2641"]
[BlackElo "2341"]
[TimeControl "180+1"]
[EndTime "10:07:16 PST"]
[Termination "Szparu won by resignation"]

1. d4 {[%clk 0:02:59.1]} 1... Nf6 {[%clk 0:02:53.1]} 2. c4 {[%clk 0:02:58.5]}
2... e6 {[%clk 0:02:53.6]} 3. Nc3 {[%clk 0:02:57.9]} 3... d5 {[%clk 0:02:52.1]}
4. Nf3 {[%clk 0:02:55.9]} 4... Be7 {[%clk 0:02:46]} 5. Bf4 {[%clk 0:02:46.7]}
5... O-O {[%clk 0:02:45.2]} 6. e3 {[%clk 0:02:46.2]} 6... Nbd7 {[%clk
0:02:40.6]} 7. h3 {[%clk 0:02:46.3]} 7... c6 {[%clk 0:02:35.7]} 8. Bd3 {[%clk
0:02:43]} 8... dxc4 {[%clk 0:02:31.1]} 9. Bxc4 {[%clk 0:02:43.2]} 9... b5 {[%clk
0:02:31.1]} 10. Bd3 {[%clk 0:02:42.6]} 10... a6 {[%clk 0:02:31.6]} 11. Rc1
{[%clk 0:02:19]} 11... c5 {[%clk 0:02:23]} 12. Bh2 {[%clk 0:01:51.3]} 12... Bb7
{[%clk 0:02:21.8]} 13. O-O {[%clk 0:01:50.3]} 13... Rc8 {[%clk 0:02:18]} 14. Bb1
{[%clk 0:01:44.1]} 14... Qb6 {[%clk 0:02:16.9]} 15. Qe2 {[%clk 0:01:37.1]} 15...
Rfd8 {[%clk 0:02:16.1]} 16. Rfd1 {[%clk 0:01:36.7]} 16... h6 {[%clk 0:02:08.1]}
17. Ne5 {[%clk 0:01:33.7]} 17... Nxe5 {[%clk 0:02:07.7]} 18. Bxe5 {[%clk
0:01:34.6]} 18... cxd4 {[%clk 0:02:00.7]} 19. Bxd4 {[%clk 0:01:21.1]} 19... Qa5
{[%clk 0:02:00.5]} 20. a3 {[%clk 0:01:01.6]} 20... b4 {[%clk 0:01:23.7]} 21.
axb4 {[%clk 0:00:59.9]} 21... Qxb4 {[%clk 0:01:24.6]} 22. Ba2 {[%clk 0:00:55.1]}
22... Qa5 {[%clk 0:01:18]} 23. Ra1 {[%clk 0:00:54.1]} 23... Qg5 {[%clk
0:01:16.3]} 24. f4 {[%clk 0:00:52.8]} 24... Qg6 {[%clk 0:01:15.8]} 25. Bb1
{[%clk 0:00:52.3]} 25... Ne4 {[%clk 0:01:09.9]} 26. Nxe4 {[%clk 0:00:45.1]}
26... Bxe4 {[%clk 0:01:10.8]} 27. Bxe4 {[%clk 0:00:42.8]} 27... Qxe4 {[%clk
0:01:11.7]} 28. Rxa6 {[%clk 0:00:26.5]} 28... Rc2 {[%clk 0:01:02.7]} 29. Rd2
{[%clk 0:00:25.8]} 29... Rc1+ {[%clk 0:00:40.8]} 30. Kh2 {[%clk 0:00:25.3]}
30... Rdc8 {[%clk 0:00:35.9]} 31. Ra7 {[%clk 0:00:25.1]} 31... Bf8 {[%clk
0:00:34.4]} 32. Qh5 {[%clk 0:00:25.1]} 32... R8c7 {[%clk 0:00:27.8]} 33. Ra8
{[%clk 0:00:24.4]} 33... Rc8 {[%clk 0:00:27.5]} 34. Ra7 {[%clk 0:00:21]} 34...
R8c7 {[%clk 0:00:27.3]} 35. Rxc7 {[%clk 0:00:21.2]} 35... Rxc7 {[%clk
0:00:28.2]} 36. Bb6 {[%clk 0:00:19.3]} 36... Rb7 {[%clk 0:00:27.1]} 37. Rd8
{[%clk 0:00:14.1]} 37... Qb4 {[%clk 0:00:18.1]} 38. Bc5 {[%clk 0:00:11.9]} 38...
Qxc5 {[%clk 0:00:12.4]} 39. Qxc5 {[%clk 0:00:12.8]} 39... g6 {[%clk 0:00:12.9]}
40. Qxf8+ {[%clk 0:00:13]} 1-0

[Event "*** Titled Tuesday Blitz"]
[Site "Chess.com"]
[Date "2021.02.02"]
[Round "1"]
[White "joejan"]
[Black "Eternauta2400"]
[Result "1-0"]
[WhiteElo "2234"]
[BlackElo "2515"]
[TimeControl "180+1"]
[EndTime "10:07:17 PST"]
[Termination "joejan won by checkmate"]

1. e4 {[%clk 0:03:00.9]} 1... e5 {[%clk 0:02:59.5]} 2. Nf3 {[%clk 0:02:59.1]}
2... Nc6 {[%clk 0:02:59.9]} 3. Bb5 {[%clk 0:02:58.4]} 3... Nf6 {[%clk
0:02:59.9]} 4. O-O {[%clk 0:02:57]} 4... a6 {[%clk 0:02:58.8]} 5. Bxc6 {[%clk
0:02:55]} 5... dxc6 {[%clk 0:02:56.6]} 6. Nxe5 {[%clk 0:02:54.8]} 6... Nxe4
{[%clk 0:02:37.6]} 7. Re1 {[%clk 0:02:53.3]} 7... Qd4 {[%clk 0:02:34.5]} 8. Qf3
{[%clk 0:02:36.2]} 8... f5 {[%clk 0:01:50]} 9. Nc3 {[%clk 0:02:26.5]} 9... Qxe5
{[%clk 0:01:23.6]} 10. Nxe4 {[%clk 0:02:25]} 10... Be7 {[%clk 0:01:23.1]} 11. d4
{[%clk 0:02:04.2]} 11... fxe4 {[%clk 0:01:18]} 12. Rxe4 {[%clk 0:02:03.9]} 12...
Qf6 {[%clk 0:01:11.2]} 13. Qb3 {[%clk 0:01:40.9]} 13... Rf8 {[%clk 0:01:00.7]}
14. Bf4 {[%clk 0:01:28.9]} 14... Bf5 {[%clk 0:00:50.2]} 15. Re2 {[%clk 0:01:06]}
15... O-O-O {[%clk 0:00:46.5]} 16. Rae1 {[%clk 0:01:00.4]} 16... Bd6 {[%clk
0:00:43.2]} 17. Be5 {[%clk 0:01:00.2]} 17... Bxe5 {[%clk 0:00:42.1]} 18. dxe5
{[%clk 0:01:00.6]} 18... Qe6 {[%clk 0:00:42.2]} 19. Qe3 {[%clk 0:00:57.7]} 19...
Qxa2 {[%clk 0:00:35.2]} 20. Qa7 {[%clk 0:00:55.6]} 20... Kd7 {[%clk 0:00:11.8]}
21. e6+ {[%clk 0:00:51.2]} 21... Ke7 {[%clk 0:00:11.2]} 22. Qc5+ {[%clk
0:00:50]} 22... Rd6 {[%clk 0:00:10.2]} 23. g4 {[%clk 0:00:30.1]} 23... Bxg4
{[%clk 0:00:08.9]} 24. Qg5+ {[%clk 0:00:28.7]} 24... Rf6 {[%clk 0:00:08.2]} 25.
Re5 {[%clk 0:00:17.8]} 25... Rxe6 {[%clk 0:00:06.9]} 26. Qxg7+ {[%clk
0:00:11.7]} 26... Rf7 {[%clk 0:00:06.8]} 27. Qxg4 {[%clk 0:00:11.1]} 27... Rxe5
{[%clk 0:00:05.4]} 28. Rxe5+ {[%clk 0:00:10.8]} 28... Kf8 {[%clk 0:00:05.7]} 29.
Qh4 {[%clk 0:00:08.7]} 29... Rg7+ {[%clk 0:00:05.7]} 30. Kf1 {[%clk 0:00:07.9]}
30... Qb1+ {[%clk 0:00:05.8]} 31. Re1 {[%clk 0:00:07.6]} 31... Qxc2 {[%clk
0:00:05.7]} 32. Qf6+ {[%clk 0:00:07.3]} 32... Rf7 {[%clk 0:00:05.6]} 33. Qh8#
{[%clk 0:00:07.1]} 1-0

[Event "*** Titled Tuesday Blitz"]
[Site "Chess.com"]
[Date "2021.02.02"]
[Round "1"]
[White "Isajevsky_Anton"]
[Black "Ashedu66"]
[Result "1-0"]
[WhiteElo "2519"]
[BlackElo "2172"]
[TimeControl "180+1"]
[EndTime "10:07:17 PST"]
[Termination "Isajevsky_Anton won on time"]

1. c4 {[%clk 0:02:59.7]} 1... c5 {[%clk 0:02:59]} 2. Nf3 {[%clk 0:02:58.9]} 2...
g6 {[%clk 0:02:57.9]} 3. e3 {[%clk 0:02:56.6]} 3... Bg7 {[%clk 0:02:56.8]} 4. d4
{[%clk 0:02:53.8]} 4... Nf6 {[%clk 0:02:56.6]} 5. d5 {[%clk 0:02:53.4]} 5... O-O
{[%clk 0:02:46.4]} 6. Nc3 {[%clk 0:02:52.2]} 6... d6 {[%clk 0:02:45.4]} 7. Be2
{[%clk 0:02:50.1]} 7... Na6 {[%clk 0:02:42.6]} 8. O-O {[%clk 0:02:49.5]} 8...
Nc7 {[%clk 0:02:42]} 9. e4 {[%clk 0:02:23.6]} 9... Bg4 {[%clk 0:02:21.5]} 10.
Ne1 {[%clk 0:01:39]} 10... Bxe2 {[%clk 0:02:18.8]} 11. Qxe2 {[%clk 0:01:39.9]}
11... e6 {[%clk 0:02:12.7]} 12. Bf4 {[%clk 0:01:23.6]} 12... exd5 {[%clk
0:02:07.8]} 13. exd5 {[%clk 0:01:23.4]} 13... Re8 {[%clk 0:02:07.3]} 14. Qd3
{[%clk 0:01:22]} 14... Qd7 {[%clk 0:01:45.9]} 15. Nf3 {[%clk 0:01:19.8]} 15...
a6 {[%clk 0:01:35.4]} 16. Rae1 {[%clk 0:00:36.8]} 16... b5 {[%clk 0:01:29.2]}
17. b3 {[%clk 0:00:36.7]} 17... bxc4 {[%clk 0:01:22.2]} 18. bxc4 {[%clk
0:00:36.4]} 18... Rab8 {[%clk 0:01:20.4]} 19. h3 {[%clk 0:00:32.9]} 19... Rxe1
{[%clk 0:01:03.4]} 20. Rxe1 {[%clk 0:00:32.4]} 20... Re8 {[%clk 0:01:00.4]} 21.
Rb1 {[%clk 0:00:29.5]} 21... Nh5 {[%clk 0:00:49.9]} 22. Bd2 {[%clk 0:00:25.6]}
22... Qc8 {[%clk 0:00:42.7]} 23. Rb6 {[%clk 0:00:19.4]} 23... Qd8 {[%clk
0:00:31.7]} 24. Rc6 {[%clk 0:00:15]} 24... h6 {[%clk 0:00:22.1]} 25. Ne4 {[%clk
0:00:14.4]} 25... Bf8 {[%clk 0:00:10.7]} 26. Bc3 {[%clk 0:00:13.3]} 26... f5
{[%clk 0:00:09.6]} 27. Nxc5 {[%clk 0:00:11.3]} 27... dxc5 {[%clk 0:00:07.5]} 28.
Rxg6+ {[%clk 0:00:11.3]} 28... Ng7 {[%clk 0:00:06.4]} 29. Qxf5 {[%clk
0:00:11.1]} 29... Qc8 {[%clk 0:00:01.8]} 30. Qf4 {[%clk 0:00:04.9]} 30... Qd7
{[%clk 0:00:01.6]} 31. Qxh6 {[%clk 0:00:03.5]} 1-0

[Event "*** Titled Tuesday Blitz"]
[Site "Chess.com"]
[Date "2021.02.02"]
[Round "1"]
[White "MelihKaanCan"]
[Black "SlavenPastar"]
[Result "0-1"]
[WhiteElo "2335"]
[BlackElo "2634"]
[TimeControl "180+1"]
[EndTime "10:07:18 PST"]
[Termination "SlavenPastar won by checkmate"]

1. d4 {[%clk 0:03:00.9]} 1... b6 {[%clk 0:02:59.7]} 2. e4 {[%clk 0:02:58.3]}
2... Bb7 {[%clk 0:03:00.2]} 3. Bd3 {[%clk 0:02:58.6]} 3... Nf6 {[%clk
0:03:00.6]} 4. Qe2 {[%clk 0:02:52.2]} 4... e6 {[%clk 0:03:00.9]} 5. Bg5 {[%clk
0:02:44]} 5... h6 {[%clk 0:02:57.9]} 6. Bh4 {[%clk 0:02:43.5]} 6... c5 {[%clk
0:02:41.3]} 7. c3 {[%clk 0:02:36.2]} 7... cxd4 {[%clk 0:02:40.7]} 8. cxd4 {[%clk
0:02:37.1]} 8... Nc6 {[%clk 0:02:39.9]} 9. Nf3 {[%clk 0:02:32.6]} 9... Nb4
{[%clk 0:02:36.6]} 10. e5 {[%clk 0:02:28.9]} 10... Nxd3+ {[%clk 0:02:31.5]} 11.
Qxd3 {[%clk 0:02:29.8]} 11... g5 {[%clk 0:02:21.9]} 12. Nxg5 {[%clk 0:02:27.1]}
12... hxg5 {[%clk 0:01:59.8]} 13. Bxg5 {[%clk 0:02:28]} 13... Be7 {[%clk
0:01:58.2]} 14. exf6 {[%clk 0:02:23.6]} 14... Bxf6 {[%clk 0:01:54.8]} 15. Bxf6
{[%clk 0:02:22]} 15... Qxf6 {[%clk 0:01:55.7]} 16. f3 {[%clk 0:01:34.1]} 16...
O-O-O {[%clk 0:01:42.2]} 17. Nc3 {[%clk 0:01:32.5]} 17... Kb8 {[%clk 0:01:26]}
18. O-O-O {[%clk 0:01:30]} 18... Rdg8 {[%clk 0:01:08.9]} 19. Rd2 {[%clk
0:01:24.3]} 19... Qf4 {[%clk 0:00:58.4]} 20. g3 {[%clk 0:01:09.5]} 20... Rxg3
{[%clk 0:00:44]} 21. hxg3 {[%clk 0:00:54]} 21... Rxh1+ {[%clk 0:00:44.9]} 22.
Kc2 {[%clk 0:00:33.3]} 22... Qxg3 {[%clk 0:00:44.5]} 23. Ne4 {[%clk 0:00:29.4]}
23... Qe1 {[%clk 0:00:40]} 24. Kb3 {[%clk 0:00:21.1]} 24... Qa1 {[%clk
0:00:31.3]} 25. Nc3 {[%clk 0:00:18.6]} 25... Qf1 {[%clk 0:00:28.1]} 26. Qe3
{[%clk 0:00:18.2]} 26... Qxf3 {[%clk 0:00:22.3]} 27. Qe5+ {[%clk 0:00:17.9]}
27... Ka8 {[%clk 0:00:18]} 28. Qc7 {[%clk 0:00:18.2]} 28... Qc6 {[%clk
0:00:11.9]} 29. Qd8+ {[%clk 0:00:17.8]} 29... Qc8 {[%clk 0:00:12]} 30. Qe7
{[%clk 0:00:18]} 30... f5 {[%clk 0:00:10.9]} 31. d5 {[%clk 0:00:15.7]} 31...
exd5 {[%clk 0:00:07.7]} 32. Nxd5 {[%clk 0:00:16.6]} 32... Rh3+ {[%clk
0:00:06.4]} 33. Kb4 {[%clk 0:00:15]} 33... a5+ {[%clk 0:00:06]} 34. Kb5 {[%clk
0:00:12.4]} 34... Qc6# {[%clk 0:00:06]} 0-1

[Event "*** Titled Tuesday Blitz"]
[Site "Chess.com"]
[Date "2021.02.02"]
[Round "1"]
[White "Spalir"]
[Black "queen_iryna"]
[Result "1-0"]
[WhiteElo "2634"]
[BlackElo "2335"]
[TimeControl "180+1"]
[EndTime "10:07:18 PST"]
[Termination "Spalir won by checkmate"]

1. e4 {[%clk 0:02:57.6]} 1... d6 {[%clk 0:03:00.4]} 2. d4 {[%clk 0:02:54.5]}
2... Nf6 {[%clk 0:03:01]} 3. Nc3 {[%clk 0:02:53.9]} 3... e5 {[%clk 0:03:00.2]}
4. Nf3 {[%clk 0:02:51.9]} 4... Nbd7 {[%clk 0:02:59.5]} 5. Bc4 {[%clk 0:02:49.9]}
5... Be7 {[%clk 0:02:59.3]} 6. O-O {[%clk 0:02:35.9]} 6... O-O {[%clk
0:02:58.8]} 7. Re1 {[%clk 0:02:36.4]} 7... c6 {[%clk 0:02:57.2]} 8. a4 {[%clk
0:02:36.7]} 8... h6 {[%clk 0:02:57]} 9. h3 {[%clk 0:02:34.1]} 9... Re8 {[%clk
0:02:56.9]} 10. Be3 {[%clk 0:02:26.7]} 10... Bf8 {[%clk 0:02:55.2]} 11. d5
{[%clk 0:02:18.8]} 11... cxd5 {[%clk 0:02:42.2]} 12. exd5 {[%clk 0:02:15.3]}
12... Nb6 {[%clk 0:02:28.4]} 13. Bb3 {[%clk 0:02:14.6]} 13... Bf5 {[%clk
0:02:23.1]} 14. Nd2 {[%clk 0:02:12.1]} 14... Bg6 {[%clk 0:01:57]} 15. a5 {[%clk
0:02:10.3]} 15... Nbd7 {[%clk 0:01:54.4]} 16. a6 {[%clk 0:02:07]} 16... b6
{[%clk 0:01:51.5]} 17. Ba4 {[%clk 0:02:00.9]} 17... Qc7 {[%clk 0:01:26.1]} 18.
Bc6 {[%clk 0:01:40.9]} 18... Rad8 {[%clk 0:01:25.7]} 19. Nb5 {[%clk 0:01:35]}
19... Qb8 {[%clk 0:01:25.6]} 20. c4 {[%clk 0:01:25.7]} 20... Nh7 {[%clk
0:01:01.8]} 21. f4 {[%clk 0:01:12.9]} 21... exf4 {[%clk 0:00:48.9]} 22. Bxf4
{[%clk 0:01:13.8]} 22... Rxe1+ {[%clk 0:00:45.9]} 23. Qxe1 {[%clk 0:01:14.7]}
23... Ne5 {[%clk 0:00:41.9]} 24. Qg3 {[%clk 0:01:00.8]} 24... Nf6 {[%clk
0:00:32.8]} 25. Qc3 {[%clk 0:01:00.7]} 25... Rc8 {[%clk 0:00:16.5]} 26. Bxe5
{[%clk 0:00:36.3]} 26... dxe5 {[%clk 0:00:17.4]} 27. b4 {[%clk 0:00:36.5]} 27...
Ne4 {[%clk 0:00:13.6]} 28. Nxe4 {[%clk 0:00:32.9]} 28... Bxe4 {[%clk 0:00:14.5]}
29. Bb7 {[%clk 0:00:31.2]} 29... Rd8 {[%clk 0:00:13.5]} 30. Re1 {[%clk
0:00:28.5]} 30... f5 {[%clk 0:00:12.4]} 31. Qb3 {[%clk 0:00:18.4]} 31... Be7
{[%clk 0:00:12]} 32. Nc3 {[%clk 0:00:18.5]} 32... Bd3 {[%clk 0:00:08.5]} 33. Nd1
{[%clk 0:00:18.1]} 33... e4 {[%clk 0:00:08.2]} 34. Nf2 {[%clk 0:00:18.2]} 34...
Qg3 {[%clk 0:00:05]} 35. Nxd3 {[%clk 0:00:16.7]} 35... exd3 {[%clk 0:00:05.9]}
36. Rxe7 {[%clk 0:00:16.7]} 36... d2 {[%clk 0:00:03.8]} 37. Qxg3 {[%clk
0:00:16.8]} 37... d1=Q+ {[%clk 0:00:03.7]} 38. Kh2 {[%clk 0:00:17.7]} 38... Rf8
{[%clk 0:00:03.1]} 39. Qxg7# {[%clk 0:00:17.5]} 1-0

[Event "*** Titled Tuesday Blitz"]
[Site "Chess.com"]
[Date "2021.02.02"]
[Round "1"]
[White "medalja"]
[Black "anon219"]
[Result "0-1"]
[WhiteElo "2459"]
[BlackElo "2904"]
[TimeControl "180+1"]
[EndTime "10:07:19 PST"]
[Termination "anon219 won by resignation"]

1. d4 {[%clk 0:02:54.7]} 1... d5 {[%clk 0:02:59.9]} 2. c4 {[%clk 0:02:54.2]}
2... e6 {[%clk 0:02:59.9]} 3. Nf3 {[%clk 0:02:53.6]} 3... Nf6 {[%clk 0:03:00.1]}
4. g3 {[%clk 0:02:52.7]} 4... dxc4 {[%clk 0:02:59.8]} 5. Bg2 {[%clk 0:02:52.3]}
5... a6 {[%clk 0:02:58.4]} 6. Ne5 {[%clk 0:02:51.5]} 6... Bb4+ {[%clk
0:02:34.8]} 7. Nc3 {[%clk 0:02:47.5]} 7... Nd5 {[%clk 0:02:35]} 8. Bd2 {[%clk
0:02:27.9]} 8... b5 {[%clk 0:02:31.4]} 9. a4 {[%clk 0:02:22.1]} 9... Bb7 {[%clk
0:02:15.5]} 10. e4 {[%clk 0:02:12.9]} 10... Nf6 {[%clk 0:02:04.2]} 11. Bg5
{[%clk 0:01:37.1]} 11... h6 {[%clk 0:01:56.2]} 12. Bxf6 {[%clk 0:01:37.2]} 12...
gxf6 {[%clk 0:01:56.8]} 13. Ng4 {[%clk 0:01:34.4]} 13... f5 {[%clk 0:01:56.6]}
14. Ne5 {[%clk 0:01:33.7]} 14... Nd7 {[%clk 0:01:45.3]} 15. O-O {[%clk
0:00:38.2]} 15... Bxc3 {[%clk 0:01:33.4]} 16. bxc3 {[%clk 0:00:35.5]} 16... Nxe5
{[%clk 0:01:33.3]} 17. dxe5 {[%clk 0:00:36.4]} 17... fxe4 {[%clk 0:01:25.1]} 18.
Qb1 {[%clk 0:00:30.4]} 18... Qd3 {[%clk 0:01:19.4]} 19. axb5 {[%clk 0:00:30.4]}
19... Qxb1 {[%clk 0:01:13.1]} 20. Rfxb1 {[%clk 0:00:31.3]} 20... a5 {[%clk
0:01:13.7]} 21. Ra4 {[%clk 0:00:27.4]} 21... Bd5 {[%clk 0:01:10.4]} 22. Rba1
{[%clk 0:00:26.3]} 22... Rg8 {[%clk 0:01:04.9]} 23. Rxa5 {[%clk 0:00:25.2]}
23... Rxa5 {[%clk 0:01:04.2]} 24. Rxa5 {[%clk 0:00:26.1]} 24... Rg5 {[%clk
0:01:02.6]} 25. Bf1 {[%clk 0:00:21]} 25... Rxe5 {[%clk 0:00:59.7]} 26. Ra4
{[%clk 0:00:21.2]} 26... e3 {[%clk 0:00:56.7]} 27. fxe3 {[%clk 0:00:20.9]} 27...
Rxe3 {[%clk 0:00:56.3]} 28. Bxc4 {[%clk 0:00:21.5]} 28... Re4 {[%clk 0:00:45]}
29. b6 {[%clk 0:00:12.8]} 29... cxb6 {[%clk 0:00:32.8]} 30. Bxd5 {[%clk
0:00:08.1]} 30... exd5 {[%clk 0:00:33.7]} 31. Rxe4+ {[%clk 0:00:06.8]} 31...
dxe4 {[%clk 0:00:33.7]} 32. Kf2 {[%clk 0:00:07.7]} 32... Kd7 {[%clk 0:00:31.1]}
33. Ke3 {[%clk 0:00:06.5]} 33... f5 {[%clk 0:00:31.3]} 34. g4 {[%clk 0:00:06.4]}
34... Ke6 {[%clk 0:00:27.9]} 35. gxf5+ {[%clk 0:00:05.6]} 35... Kxf5 {[%clk
0:00:27.8]} 36. c4 {[%clk 0:00:05.5]} 36... Ke5 {[%clk 0:00:24.9]} 37. h3 {[%clk
0:00:05.7]} 37... h5 {[%clk 0:00:23.1]} 38. h4 {[%clk 0:00:05.8]} 38... Kf5
{[%clk 0:00:21.2]} 39. Kd4 {[%clk 0:00:06.2]} 39... Kf4 {[%clk 0:00:21.7]} 40.
Kd5 {[%clk 0:00:06]} 40... e3 {[%clk 0:00:22]} 41. Kc6 {[%clk 0:00:06.9]} 41...
e2 {[%clk 0:00:22.6]} 42. Kxb6 {[%clk 0:00:07.8]} 42... e1=Q {[%clk 0:00:23.2]}
43. c5 {[%clk 0:00:08.7]} 43... Qxh4 {[%clk 0:00:23.8]} 44. c6 {[%clk
0:00:09.6]} 44... Qf6 {[%clk 0:00:24.4]} 45. Kb7 {[%clk 0:00:09.8]} 45... Qxc6+
{[%clk 0:00:25.1]} 0-1

[Event "*** Titled Tuesday Blitz"]
[Site "Chess.com"]
[Date "2021.02.02"]
[Round "1"]
[White "Al_Shima"]
[Black "Susal_De_Silva"]
[Result "1/2-1/2"]
[WhiteElo "2301"]
[BlackElo "2584"]
[TimeControl "180+1"]
[EndTime "10:07:19 PST"]
[Termination "Game drawn by repetition"]

1. e4 {[%clk 0:02:58.6]} 1... e5 {[%clk 0:02:59.8]} 2. Nf3 {[%clk 0:02:55.2]}
2... Nc6 {[%clk 0:03:00.3]} 3. Bb5 {[%clk 0:02:54.5]} 3... a6 {[%clk 0:03:00]}
4. Bxc6 {[%clk 0:02:47]} 4... dxc6 {[%clk 0:03:00.9]} 5. O-O {[%clk 0:02:45.9]}
5... f6 {[%clk 0:03:00.1]} 6. d4 {[%clk 0:02:35.2]} 6... Bg4 {[%clk 0:02:59.9]}
7. dxe5 {[%clk 0:02:28.7]} 7... Qxd1 {[%clk 0:03:00.8]} 8. Rxd1 {[%clk 0:02:28]}
8... fxe5 {[%clk 0:03:01.7]} 9. Bg5 {[%clk 0:02:19.8]} 9... Bxf3 {[%clk
0:02:55.4]} 10. gxf3 {[%clk 0:02:19.2]} 10... Bd6 {[%clk 0:02:56.1]} 11. Nd2
{[%clk 0:02:10.5]} 11... b5 {[%clk 0:02:54.8]} 12. Nf1 {[%clk 0:02:07.2]} 12...
Ne7 {[%clk 0:02:50.4]} 13. Ne3 {[%clk 0:02:01.5]} 13... g6 {[%clk 0:02:47.5]}
14. Ng4 {[%clk 0:01:53.1]} 14... h5 {[%clk 0:02:42.9]} 15. Ne3 {[%clk
0:01:17.3]} 15... Kf7 {[%clk 0:02:38]} 16. Kg2 {[%clk 0:01:13.9]} 16... Ke6
{[%clk 0:02:37.8]} 17. h4 {[%clk 0:01:13]} 17... Rhf8 {[%clk 0:02:37.6]} 18. c4
{[%clk 0:01:10.6]} 18... Rf7 {[%clk 0:02:34.4]} 19. Rac1 {[%clk 0:00:59.7]}
19... c5 {[%clk 0:02:29]} 20. Nd5 {[%clk 0:00:49.6]} 20... Nxd5 {[%clk
0:02:25.3]} 21. cxd5+ {[%clk 0:00:48]} 21... Kd7 {[%clk 0:02:24.7]} 22. Rd3
{[%clk 0:00:44.7]} 22... c4 {[%clk 0:02:24.8]} 23. Rdc3 {[%clk 0:00:40.8]} 23...
Bb4 {[%clk 0:02:24.9]} 24. R3c2 {[%clk 0:00:38.7]} 24... Raf8 {[%clk 0:02:23.7]}
25. a3 {[%clk 0:00:38.9]} 25... Bc5 {[%clk 0:02:20.5]} 26. Bh6 {[%clk
0:00:38.1]} 26... Rg8 {[%clk 0:02:08.9]} 27. Bg5 {[%clk 0:00:37.8]} 27... Bd4
{[%clk 0:02:09]} 28. b3 {[%clk 0:00:35.7]} 28... c3 {[%clk 0:02:05.3]} 29. b4
{[%clk 0:00:35.2]} 29... a5 {[%clk 0:02:01.5]} 30. Rd1 {[%clk 0:00:31]} 30...
axb4 {[%clk 0:01:59.4]} 31. axb4 {[%clk 0:00:30.6]} 31... Rgf8 {[%clk
0:01:59.5]} 32. Bh6 {[%clk 0:00:29.3]} 32... Rxf3 {[%clk 0:01:53.1]} 33. Bxf8
{[%clk 0:00:28.1]} 33... Rxf8 {[%clk 0:01:54]} 34. Rd3 {[%clk 0:00:25.1]} 34...
Rf4 {[%clk 0:01:53.9]} 35. f3 {[%clk 0:00:22]} 35... Rxh4 {[%clk 0:01:53.2]} 36.
Rdxc3 {[%clk 0:00:21.2]} 36... Bxc3 {[%clk 0:01:52.6]} 37. Rxc3 {[%clk
0:00:22.1]} 37... g5 {[%clk 0:01:52]} 38. Rc5 {[%clk 0:00:21.5]} 38... g4 {[%clk
0:01:52.1]} 39. Rxb5 {[%clk 0:00:20.8]} 39... gxf3+ {[%clk 0:01:52.3]} 40. Kxf3
{[%clk 0:00:21.7]} 40... Rf4+ {[%clk 0:01:51.4]} 41. Ke3 {[%clk 0:00:21]} 41...
h4 {[%clk 0:01:51.9]} 42. Rb8 {[%clk 0:00:21]} 42... Rf1 {[%clk 0:01:48]} 43.
Rh8 {[%clk 0:00:20.9]} 43... Rb1 {[%clk 0:01:48.4]} 44. Rxh4 {[%clk 0:00:19]}
44... Rxb4 {[%clk 0:01:49]} 45. Rh7+ {[%clk 0:00:19]} 45... Kd6 {[%clk
0:01:49.7]} 46. Rh6+ {[%clk 0:00:19.9]} 46... Kd7 {[%clk 0:01:49.4]} 47. Rc6
{[%clk 0:00:20.8]} 47... Rb3+ {[%clk 0:01:49.3]} 48. Kd2 {[%clk 0:00:21]} 48...
Rh3 {[%clk 0:01:48.5]} 49. Ke2 {[%clk 0:00:20.9]} 49... Rh5 {[%clk 0:01:44.7]}
50. Kd3 {[%clk 0:00:20.5]} 50... Rh1 {[%clk 0:01:32.5]} 51. Re6 {[%clk
0:00:19.5]} 51... Rh3+ {[%clk 0:01:30.4]} 52. Kc4 {[%clk 0:00:18.7]} 52... Rh4
{[%clk 0:01:29.8]} 53. Rxe5 {[%clk 0:00:17.8]} 53... Rh1 {[%clk 0:01:29.9]} 54.
Re6 {[%clk 0:00:17.8]} 54... Rh5 {[%clk 0:01:28.8]} 55. Kd4 {[%clk 0:00:17.9]}
55... Rg5 {[%clk 0:01:28.5]} 56. Rh6 {[%clk 0:00:17.8]} 56... Rg4 {[%clk
0:01:24.6]} 57. Rh7+ {[%clk 0:00:16.3]} 57... Kd6 {[%clk 0:01:22.6]} 58. Rh6+
{[%clk 0:00:17.2]} 58... Kd7 {[%clk 0:01:23]} 59. Re6 {[%clk 0:00:16.8]} 59...
Rg5 {[%clk 0:01:22.6]} 60. e5 {[%clk 0:00:15.7]} 60... Rg4+ {[%clk 0:01:23]} 61.
Kc5 {[%clk 0:00:15.9]} 61... Rg1 {[%clk 0:01:23.6]} 62. Rh6 {[%clk 0:00:13.5]}
62... Rc1+ {[%clk 0:01:24.2]} 63. Kd4 {[%clk 0:00:13.7]} 63... Rd1+ {[%clk
0:01:24.8]} 64. Ke4 {[%clk 0:00:14.6]} 64... Re1+ {[%clk 0:01:25.3]} 65. Kf5
{[%clk 0:00:13.5]} 65... Rf1+ {[%clk 0:01:25.9]} 66. Ke4 {[%clk 0:00:13.7]}
66... Re1+ {[%clk 0:01:26.2]} 67. Kd4 {[%clk 0:00:12.8]} 67... Rd1+ {[%clk
0:01:26.6]} 68. Ke4 {[%clk 0:00:12]} 68... Re1+ {[%clk 0:01:26.9]} 1/2-1/2